[Event "*** Titled Tuesday Blitz"]
[Site "Chess.com"]
[Date "2020.12.01"]
[Round "2"]
[White "azikom"]
[Black "03revilo"]
[Result "1-0"]
[WhiteElo "2625"]
[BlackElo "2321"]
[TimeControl "180+1"]
[EndTime "10:18:24 PST"]
[Termination "azikom won by resignation"]

1. e4 {[%clk 0:03:00.2]} 1... c5 {[%clk 0:02:58.3]} 2. Nc3 {[%clk 0:02:59.7]}
2... Nc6 {[%clk 0:02:54]} 3. g3 {[%clk 0:03:00.6]} 3... g6 {[%clk 0:02:53.2]} 4.
Bg2 {[%clk 0:03:01.5]} 4... Bg7 {[%clk 0:02:53.6]} 5. d3 {[%clk 0:03:02.4]} 5...
e6 {[%clk 0:02:49.1]} 6. Be3 {[%clk 0:03:02]} 6... d6 {[%clk 0:02:49.7]} 7. Qd2
{[%clk 0:03:01.6]} 7... Nd4 {[%clk 0:02:50.3]} 8. Nd1 {[%clk 0:03:00.4]} 8... h5
{[%clk 0:02:31.8]} 9. c3 {[%clk 0:03:00.1]} 9... Nc6 {[%clk 0:02:31.3]} 10. h3
{[%clk 0:03:00]} 10... Nge7 {[%clk 0:02:28.4]} 11. Ne2 {[%clk 0:02:59.2]} 11...
b6 {[%clk 0:02:28.6]} 12. O-O {[%clk 0:02:59.1]} 12... Bb7 {[%clk 0:02:29.3]}
13. f4 {[%clk 0:02:57.6]} 13... Qd7 {[%clk 0:02:27.2]} 14. Nf2 {[%clk
0:02:57.9]} 14... O-O-O {[%clk 0:02:27.8]} 15. d4 {[%clk 0:02:48.3]} 15... cxd4
{[%clk 0:02:06.7]} 16. cxd4 {[%clk 0:02:47.8]} 16... d5 {[%clk 0:02:07]} 17. e5
{[%clk 0:02:48.1]} 17... Nf5 {[%clk 0:02:06.6]} 18. Rfc1 {[%clk 0:02:45.7]}
18... Kb8 {[%clk 0:02:06]} 19. Kh2 {[%clk 0:02:45.5]} 19... f6 {[%clk
0:02:01.2]} 20. Nd3 {[%clk 0:02:32.2]} 20... Nxe3 {[%clk 0:01:56.2]} 21. Qxe3
{[%clk 0:02:31.9]} 21... fxe5 {[%clk 0:01:56.4]} 22. dxe5 {[%clk 0:02:27.8]}
22... h4 {[%clk 0:01:48.5]} 23. g4 {[%clk 0:02:26.4]} 23... g5 {[%clk
0:01:49.1]} 24. fxg5 {[%clk 0:02:23.7]} 24... Qc7 {[%clk 0:01:43.4]} 25. Nef4
{[%clk 0:02:18.6]} 25... Rde8 {[%clk 0:01:34.6]} 26. Ng6 {[%clk 0:02:08.8]}
26... Rh7 {[%clk 0:01:15.1]} 27. Kh1 {[%clk 0:02:06.6]} 27... Qf7 {[%clk
0:01:11]} 28. Ngf4 {[%clk 0:02:01.8]} 28... Rhh8 {[%clk 0:01:06.9]} 29. Rf1
{[%clk 0:01:55.3]} 29... Qc7 {[%clk 0:01:03]} 30. Rae1 {[%clk 0:01:54.1]} 30...
Rhf8 {[%clk 0:01:01.6]} 31. Ng6 {[%clk 0:01:46.9]} 31... Rxf1+ {[%clk
0:01:01.2]} 32. Rxf1 {[%clk 0:01:46.7]} 32... Ba6 {[%clk 0:00:58.5]} 33. Rc1
{[%clk 0:01:42.4]} 33... Qd7 {[%clk 0:00:47.9]} 34. Nxh4 {[%clk 0:01:25.4]}
34... Bxd3 {[%clk 0:00:40.1]} 35. Qxd3 {[%clk 0:01:25.3]} 35... Nxe5 {[%clk
0:00:37.6]} 36. Qg3 {[%clk 0:01:23.2]} 36... Kb7 {[%clk 0:00:25.6]} 37. Re1
{[%clk 0:01:18.4]} 37... Nc4 {[%clk 0:00:24.7]} 38. b3 {[%clk 0:01:16.8]} 38...
Nd6 {[%clk 0:00:14.4]} 39. Ng6 {[%clk 0:01:15.3]} 39... Nb5 {[%clk 0:00:11.2]}
40. Nf4 {[%clk 0:01:04.5]} 40... Qc7 {[%clk 0:00:09.3]} 41. Nh5 {[%clk
0:00:56.9]} 41... Bh8 {[%clk 0:00:08.8]} 42. Qxc7+ {[%clk 0:00:55.9]} 42... Kxc7
{[%clk 0:00:09]} 43. h4 {[%clk 0:00:54.6]} 43... Kd6 {[%clk 0:00:09.3]} 44. Kh2
{[%clk 0:00:52.5]} 44... e5 {[%clk 0:00:09.8]} 45. Nf6 {[%clk 0:00:50.7]} 45...
Bxf6 {[%clk 0:00:09.2]} 46. gxf6 {[%clk 0:00:50.6]} 46... Rh8 {[%clk 0:00:08.8]}
47. Kh3 {[%clk 0:00:50.4]} 47... Nd4 {[%clk 0:00:08.2]} 48. h5 {[%clk
0:00:40.2]} 48... Rh6 {[%clk 0:00:06.8]} 49. Rf1 {[%clk 0:00:39.3]} 49... Ne6
{[%clk 0:00:04.9]} 50. Kh4 {[%clk 0:00:39.1]} 50... Nf4 {[%clk 0:00:05.1]} 51.
Rxf4 {[%clk 0:00:37.8]} 51... exf4 {[%clk 0:00:05]} 52. g5 {[%clk 0:00:38.2]}
52... Rh8 {[%clk 0:00:04.9]} 53. g6 {[%clk 0:00:37.5]} 53... Ke6 {[%clk
0:00:04.1]} 54. Kg5 {[%clk 0:00:37.5]} 54... d4 {[%clk 0:00:02.4]} 55. g7 {[%clk
0:00:36.5]} 55... Rg8 {[%clk 0:00:02.1]} 56. h6 {[%clk 0:00:37]} 56... Kf7
{[%clk 0:00:02.4]} 57. h7 {[%clk 0:00:35.4]} 57... Rxg7+ {[%clk 0:00:02.8]} 58.
fxg7 {[%clk 0:00:35.7]} 58... Kxg7 {[%clk 0:00:03.7]} 59. Kxf4 {[%clk
0:00:36.4]} 59... Kxh7 {[%clk 0:00:04]} 60. Ke4 {[%clk 0:00:37.3]} 60... Kg7
{[%clk 0:00:04.8]} 61. Kxd4 {[%clk 0:00:38.2]} 61... Kf7 {[%clk 0:00:05.7]} 62.
Kd5 {[%clk 0:00:38.4]} 62... Ke7 {[%clk 0:00:06.6]} 63. Kc6 {[%clk 0:00:38.6]}
63... Kd8 {[%clk 0:00:07.5]} 64. Kb7 {[%clk 0:00:38.6]} 1-0

[Event "*** Titled Tuesday Blitz"]
[Site "Chess.com"]
[Date "2020.12.01"]
[Round "2"]
[White "andrzej"]
[Black "ChessQueen"]
[Result "0-1"]
[WhiteElo "2389"]
[BlackElo "2732"]
[TimeControl "180+1"]
[EndTime "10:18:25 PST"]
[Termination "ChessQueen won on time"]

1. e4 {[%clk 0:03:00.9]} 1... c6 {[%clk 0:02:59.8]} 2. d4 {[%clk 0:02:59.8]}
2... d5 {[%clk 0:03:00]} 3. exd5 {[%clk 0:03:00.7]} 3... cxd5 {[%clk 0:03:00.3]}
4. Bd3 {[%clk 0:03:01.3]} 4... Nc6 {[%clk 0:02:58.8]} 5. c3 {[%clk 0:03:01.7]}
5... Nf6 {[%clk 0:02:59.5]} 6. Bf4 {[%clk 0:03:00.1]} 6... g6 {[%clk 0:02:58.8]}
7. Nf3 {[%clk 0:02:54.2]} 7... Bg7 {[%clk 0:02:57.4]} 8. h3 {[%clk 0:02:53.6]}
8... Bf5 {[%clk 0:02:48.8]} 9. Bxf5 {[%clk 0:02:53.5]} 9... gxf5 {[%clk
0:02:49.3]} 10. O-O {[%clk 0:02:54.2]} 10... Ne4 {[%clk 0:02:48.3]} 11. Ne1
{[%clk 0:02:50.9]} 11... Bf6 {[%clk 0:02:40.8]} 12. Nd3 {[%clk 0:02:46.4]} 12...
e6 {[%clk 0:02:32.7]} 13. f3 {[%clk 0:02:42.1]} 13... Nd6 {[%clk 0:02:29.2]} 14.
Nd2 {[%clk 0:02:31.2]} 14... Rg8 {[%clk 0:02:28.5]} 15. Kh2 {[%clk 0:02:23.2]}
15... Bg5 {[%clk 0:02:23.9]} 16. Bg3 {[%clk 0:02:10]} 16... Bh4 {[%clk
0:02:18.9]} 17. Bf4 {[%clk 0:02:06]} 17... Qe7 {[%clk 0:02:13.5]} 18. Qe2 {[%clk
0:01:59.6]} 18... O-O-O {[%clk 0:02:05]} 19. Ne5 {[%clk 0:01:58]} 19... Bg5
{[%clk 0:02:00.4]} 20. Qe3 {[%clk 0:01:35]} 20... Bxf4+ {[%clk 0:01:55.5]} 21.
Qxf4 {[%clk 0:01:34.7]} 21... Qg5 {[%clk 0:01:47.1]} 22. Qxg5 {[%clk 0:01:29.7]}
22... Rxg5 {[%clk 0:01:48]} 23. Nxc6 {[%clk 0:01:14.9]} 23... bxc6 {[%clk
0:01:47.9]} 24. Rae1 {[%clk 0:01:08.3]} 24... f4 {[%clk 0:01:43.7]} 25. Nb3
{[%clk 0:01:04.8]} 25... Nf5 {[%clk 0:01:41.2]} 26. Nc5 {[%clk 0:00:59.3]} 26...
Rdg8 {[%clk 0:01:31.3]} 27. Rf2 {[%clk 0:00:58.9]} 27... Ne3 {[%clk 0:01:31.4]}
28. Rg1 {[%clk 0:00:53.5]} 28... Kc7 {[%clk 0:01:21]} 29. Re2 {[%clk 0:00:52.4]}
29... Nc4 {[%clk 0:01:04.6]} 30. Nd3 {[%clk 0:00:50.1]} 30... Rf5 {[%clk
0:01:04.7]} 31. b3 {[%clk 0:00:46.7]} 31... Nd6 {[%clk 0:01:04.2]} 32. Ne5
{[%clk 0:00:44.3]} 32... Nb5 {[%clk 0:00:59]} 33. Rc1 {[%clk 0:00:40.3]} 33...
Kd6 {[%clk 0:00:59.3]} 34. Rd2 {[%clk 0:00:36.2]} 34... c5 {[%clk 0:00:58]} 35.
a4 {[%clk 0:00:21.1]} 35... cxd4 {[%clk 0:00:58.3]} 36. Nxf7+ {[%clk 0:00:11.8]}
36... Rxf7 {[%clk 0:00:55.7]} 37. axb5 {[%clk 0:00:12.3]} 37... dxc3 {[%clk
0:00:55.9]} 38. Rxc3 {[%clk 0:00:13]} 38... Rc7 {[%clk 0:00:52.7]} 39. Rdc2
{[%clk 0:00:08.3]} 39... Rgc8 {[%clk 0:00:50]} 40. Rc6+ {[%clk 0:00:03.9]} 40...
Rxc6 {[%clk 0:00:49.5]} 41. bxc6 {[%clk 0:00:04.8]} 41... Rxc6 {[%clk
0:00:49.7]} 42. Ra2 {[%clk 0:00:05.7]} 42... a6 {[%clk 0:00:48.9]} 43. g3 {[%clk
0:00:06]} 43... fxg3+ {[%clk 0:00:46.8]} 44. Kxg3 {[%clk 0:00:06.9]} 44... Ke5
{[%clk 0:00:46.1]} 45. Kg4 {[%clk 0:00:04.1]} 45... Kf6 {[%clk 0:00:42.1]} 46.
f4 {[%clk 0:00:04]} 46... Rb6 {[%clk 0:00:37.6]} 47. Ra3 {[%clk 0:00:03]} 47...
Kg6 {[%clk 0:00:32.5]} 48. h4 {[%clk 0:00:03.3]} 48... h5+ {[%clk 0:00:32.6]}
49. Kf3 {[%clk 0:00:03.9]} 49... Kf5 {[%clk 0:00:33.5]} 50. Ke3 {[%clk
0:00:04.4]} 50... Rb4 {[%clk 0:00:32.6]} 51. Rxa6 {[%clk 0:00:03.2]} 51... Rxb3+
{[%clk 0:00:33]} 52. Kf2 {[%clk 0:00:03.6]} 52... Rb4 {[%clk 0:00:33.7]} 53. Rc6
{[%clk 0:00:02.3]} 53... Rxf4+ {[%clk 0:00:33.7]} 54. Kg3 {[%clk 0:00:03.2]}
54... Rg4+ {[%clk 0:00:34.2]} 55. Kh3 {[%clk 0:00:03.7]} 55... d4 {[%clk
0:00:34.8]} 56. Rc5+ {[%clk 0:00:03.3]} 56... e5 {[%clk 0:00:35.4]} 57. Rc6
{[%clk 0:00:02.2]} 57... d3 {[%clk 0:00:35.6]} 58. Rd6 {[%clk 0:00:02.2]} 58...
Ke4 {[%clk 0:00:36]} 59. Rd7 {[%clk 0:00:01.9]} 59... Ke3 {[%clk 0:00:36.2]} 60.
Rd8 {[%clk 0:00:02.4]} 60... d2 {[%clk 0:00:36.1]} 61. Rd7 {[%clk 0:00:02.1]}
61... Rd4 {[%clk 0:00:36.2]} 62. Rf7 {[%clk 0:00:01.2]} 62... d1=Q {[%clk
0:00:34.8]} 0-1

[Event "*** Titled Tuesday Blitz"]
[Site "Chess.com"]
[Date "2020.12.01"]
[Round "2"]
[White "hermionegrangermagic"]
[Black "AsselLesbekova"]
[Result "1-0"]
[WhiteElo "2621"]
[BlackElo "2285"]
[TimeControl "180+1"]
[EndTime "10:18:27 PST"]
[Termination "hermionegrangermagic won by resignation"]

1. e4 {[%clk 0:03:00.3]} 1... c5 {[%clk 0:02:58.9]} 2. Nf3 {[%clk 0:02:59.1]}
2... Nc6 {[%clk 0:02:59]} 3. d4 {[%clk 0:02:59.1]} 3... cxd4 {[%clk 0:02:59.9]}
4. Nxd4 {[%clk 0:02:59.7]} 4... e5 {[%clk 0:03:00.3]} 5. Nb5 {[%clk 0:02:59.6]}
5... d6 {[%clk 0:03:00.9]} 6. N1c3 {[%clk 0:02:59.7]} 6... a6 {[%clk 0:03:00.9]}
7. Na3 {[%clk 0:02:59.6]} 7... b5 {[%clk 0:03:01.4]} 8. Nd5 {[%clk 0:02:59.6]}
8... Nce7 {[%clk 0:03:01.6]} 9. c4 {[%clk 0:02:54.4]} 9... Nxd5 {[%clk
0:03:01.6]} 10. exd5 {[%clk 0:02:49.9]} 10... bxc4 {[%clk 0:03:00.4]} 11. Nxc4
{[%clk 0:02:49.1]} 11... Nf6 {[%clk 0:02:58.7]} 12. Be3 {[%clk 0:02:41.5]} 12...
Rb8 {[%clk 0:02:56.8]} 13. Qa4+ {[%clk 0:02:16.5]} 13... Qd7 {[%clk 0:02:55.7]}
14. Qxd7+ {[%clk 0:02:08.7]} 14... Bxd7 {[%clk 0:02:56]} 15. Nb6 {[%clk
0:02:05.2]} 15... Bb5 {[%clk 0:02:53.5]} 16. Bxb5+ {[%clk 0:01:56]} 16... axb5
{[%clk 0:02:54.4]} 17. Rc1 {[%clk 0:01:31.8]} 17... Be7 {[%clk 0:02:41]} 18. Rc6
{[%clk 0:01:30.7]} 18... O-O {[%clk 0:01:43.6]} 19. Ke2 {[%clk 0:01:04.7]} 19...
Rfd8 {[%clk 0:01:29.6]} 20. Rhc1 {[%clk 0:00:51.3]} 20... Kf8 {[%clk 0:01:26.6]}
21. R1c2 {[%clk 0:00:44.7]} 21... Ke8 {[%clk 0:01:21]} 22. f3 {[%clk 0:00:42.3]}
22... Nd7 {[%clk 0:01:10]} 23. Nc8 {[%clk 0:00:39.6]} 23... Nf6 {[%clk
0:01:10.1]} 24. Bg5 {[%clk 0:00:29.1]} 24... Nxd5 {[%clk 0:00:57.6]} 25. Bxe7
{[%clk 0:00:28.9]} 25... Nxe7 {[%clk 0:00:53.2]} 26. Nxd6+ {[%clk 0:00:29]}
26... Kf8 {[%clk 0:00:41.5]} 27. Ra6 {[%clk 0:00:29.4]} 27... Nd5 {[%clk
0:00:33.6]} 28. a3 {[%clk 0:00:27.2]} 28... Nf4+ {[%clk 0:00:31.8]} 29. Kf1
{[%clk 0:00:25.6]} 29... Ne6 {[%clk 0:00:31.5]} 30. Ne4 {[%clk 0:00:23.1]} 30...
Nd4 {[%clk 0:00:29.6]} 31. Rc3 {[%clk 0:00:22.1]} 31... Rbc8 {[%clk 0:00:28.6]}
32. Ra7 {[%clk 0:00:21]} 32... Rxc3 {[%clk 0:00:27.1]} 33. Nxc3 {[%clk
0:00:21.9]} 33... f5 {[%clk 0:00:23.8]} 34. Rb7 {[%clk 0:00:21.1]} 34... Ne6
{[%clk 0:00:19.2]} 35. Rxb5 {[%clk 0:00:19.8]} 35... e4 {[%clk 0:00:14.5]} 36.
fxe4 {[%clk 0:00:18.9]} 36... fxe4 {[%clk 0:00:15.4]} 37. Nxe4 {[%clk
0:00:16.9]} 37... Rd1+ {[%clk 0:00:15.7]} 38. Kf2 {[%clk 0:00:16.7]} 38... Ke7
{[%clk 0:00:12.2]} 39. Rb7+ {[%clk 0:00:16.1]} 39... Kf8 {[%clk 0:00:12.2]} 40.
Rb4 {[%clk 0:00:13.4]} 40... Nf4 {[%clk 0:00:11.1]} 41. Kf3 {[%clk 0:00:12.6]}
41... Nd3 {[%clk 0:00:10.9]} 42. Rb8+ {[%clk 0:00:11.6]} 42... Ke7 {[%clk
0:00:10.4]} 43. Rb7+ {[%clk 0:00:12.5]} 43... Ke6 {[%clk 0:00:08]} 44. Ke2
{[%clk 0:00:12.2]} 44... Rg1 {[%clk 0:00:02.9]} 45. Kxd3 {[%clk 0:00:11.8]}
45... Rxg2 {[%clk 0:00:03.6]} 46. a4 {[%clk 0:00:11.1]} 46... Rxh2 {[%clk
0:00:04]} 47. a5 {[%clk 0:00:11.3]} 47... Rh1 {[%clk 0:00:03.8]} 48. a6 {[%clk
0:00:11.3]} 48... Rd1+ {[%clk 0:00:04.7]} 49. Kc2 {[%clk 0:00:10.5]} 49... Rd8
{[%clk 0:00:05.6]} 50. a7 {[%clk 0:00:10.2]} 50... Ra8 {[%clk 0:00:06.1]} 51. b4
{[%clk 0:00:09.8]} 51... Kd5 {[%clk 0:00:06.4]} 52. Nc3+ {[%clk 0:00:07.7]}
52... Kc6 {[%clk 0:00:04.8]} 53. Rxg7 {[%clk 0:00:07.5]} 1-0

[Event "*** Titled Tuesday Blitz"]
[Site "Chess.com"]
[Date "2020.12.01"]
[Round "2"]
[White "Tsyhanchuk_Stanislav"]
[Black "Gogolev_Artemy"]
[Result "1-0"]
[WhiteElo "2230"]
[BlackElo "2417"]
[TimeControl "180+1"]
[EndTime "10:18:27 PST"]
[Termination "Tsyhanchuk_Stanislav won by resignation"]

1. d4 {[%clk 0:03:00]} 1... Nf6 {[%clk 0:02:58.1]} 2. Nf3 {[%clk 0:02:59.1]}
2... g6 {[%clk 0:02:55.3]} 3. c4 {[%clk 0:02:59.4]} 3... d6 {[%clk 0:02:54.8]}
4. g3 {[%clk 0:02:58.9]} 4... Bg7 {[%clk 0:02:54.2]} 5. Bg2 {[%clk 0:02:58.2]}
5... O-O {[%clk 0:02:54.4]} 6. O-O {[%clk 0:02:58.5]} 6... Bf5 {[%clk
0:02:53.7]} 7. Nc3 {[%clk 0:02:57.6]} 7... Ne4 {[%clk 0:02:53.2]} 8. Nd2 {[%clk
0:02:45]} 8... Nxc3 {[%clk 0:02:50.8]} 9. bxc3 {[%clk 0:02:44.7]} 9... c6 {[%clk
0:02:51]} 10. e4 {[%clk 0:02:44.3]} 10... Bc8 {[%clk 0:02:45.1]} 11. Nb3 {[%clk
0:02:34.4]} 11... a5 {[%clk 0:02:35.8]} 12. a4 {[%clk 0:02:28.6]} 12... Na6
{[%clk 0:02:34.4]} 13. Ba3 {[%clk 0:02:24.4]} 13... Qc7 {[%clk 0:02:29.4]} 14.
Re1 {[%clk 0:02:20.3]} 14... Be6 {[%clk 0:02:16.9]} 15. Qe2 {[%clk 0:02:11.7]}
15... Rfe8 {[%clk 0:02:02.5]} 16. Rab1 {[%clk 0:02:05.8]} 16... Rad8 {[%clk
0:01:46.5]} 17. Nd2 {[%clk 0:01:54.4]} 17... Bc8 {[%clk 0:01:42.7]} 18. h4
{[%clk 0:01:39.2]} 18... e5 {[%clk 0:01:38.7]} 19. Qd3 {[%clk 0:01:18.3]} 19...
exd4 {[%clk 0:01:15]} 20. cxd4 {[%clk 0:01:19.2]} 20... Qe7 {[%clk 0:01:13]} 21.
e5 {[%clk 0:01:06.7]} 21... c5 {[%clk 0:01:09.2]} 22. d5 {[%clk 0:00:43.6]}
22... dxe5 {[%clk 0:00:54.9]} 23. Rb5 {[%clk 0:00:31]} 23... Nb4 {[%clk
0:00:52.2]} 24. Bxb4 {[%clk 0:00:28.4]} 24... axb4 {[%clk 0:00:51.8]} 25. Nb3
{[%clk 0:00:24.3]} 25... Bd7 {[%clk 0:00:39.8]} 26. Rxb7 {[%clk 0:00:23.5]}
26... Rc8 {[%clk 0:00:38.9]} 27. a5 {[%clk 0:00:20.4]} 27... Qd8 {[%clk
0:00:36]} 28. a6 {[%clk 0:00:17.9]} 28... Rc7 {[%clk 0:00:27.2]} 29. d6 {[%clk
0:00:12.7]} 29... Rxb7 {[%clk 0:00:26.8]} 30. axb7 {[%clk 0:00:13.3]} 30... Qb6
{[%clk 0:00:26]} 31. Qd5 {[%clk 0:00:11.3]} 31... Be6 {[%clk 0:00:23.8]} 32.
Qxc5 {[%clk 0:00:11.2]} 32... Qxc5 {[%clk 0:00:22.4]} 33. Nxc5 {[%clk
0:00:12.1]} 33... Bxc4 {[%clk 0:00:22.2]} 34. Nd7 {[%clk 0:00:06.5]} 34... b3
{[%clk 0:00:22.2]} 35. b8=Q {[%clk 0:00:05.8]} 35... Rxb8 {[%clk 0:00:22.6]} 36.
Nxb8 {[%clk 0:00:06.6]} 36... Bd3 {[%clk 0:00:22.1]} 37. Be4 {[%clk 0:00:03.9]}
37... Bc4 {[%clk 0:00:20.3]} 38. d7 {[%clk 0:00:03.8]} 38... Bf6 {[%clk
0:00:20.8]} 39. Nc6 {[%clk 0:00:03.8]} 39... Kf8 {[%clk 0:00:21.2]} 40. d8=Q+
{[%clk 0:00:03.6]} 40... Bxd8 {[%clk 0:00:21.6]} 41. Nxd8 {[%clk 0:00:04.3]}
41... Ke7 {[%clk 0:00:22.5]} 42. Nc6+ {[%clk 0:00:04.7]} 42... Kd6 {[%clk
0:00:22.4]} 43. Na5 {[%clk 0:00:05.6]} 43... Be6 {[%clk 0:00:22]} 44. Rb1 {[%clk
0:00:06]} 44... Kc5 {[%clk 0:00:22.3]} 45. Nxb3+ {[%clk 0:00:06.9]} 45... Kc4
{[%clk 0:00:21.5]} 46. Nc1 {[%clk 0:00:07.8]} 46... Kc3 {[%clk 0:00:21.6]} 47.
Kf1 {[%clk 0:00:08]} 47... Kd4 {[%clk 0:00:22]} 48. f3 {[%clk 0:00:07.6]} 48...
Kc3 {[%clk 0:00:22.3]} 49. Ne2+ {[%clk 0:00:08.1]} 49... Kd2 {[%clk 0:00:21.7]}
50. Re1 {[%clk 0:00:08.9]} 50... Ke3 {[%clk 0:00:20]} 51. Bb1 {[%clk 0:00:09]}
51... Kd2 {[%clk 0:00:19.3]} 52. Kf2 {[%clk 0:00:07.9]} 52... Bc4 {[%clk
0:00:19.2]} 53. f4 {[%clk 0:00:05.4]} 53... exf4 {[%clk 0:00:18.5]} 54. gxf4
{[%clk 0:00:06.3]} 54... h5 {[%clk 0:00:19]} 55. Ng3 {[%clk 0:00:06.2]} 55...
Kc3 {[%clk 0:00:18.4]} 56. f5 {[%clk 0:00:06.3]} 56... Kd4 {[%clk 0:00:19.3]}
57. fxg6 {[%clk 0:00:05.9]} 57... fxg6 {[%clk 0:00:20.2]} 58. Bxg6 {[%clk
0:00:06.3]} 1-0

[Event "*** Titled Tuesday Blitz"]
[Site "Chess.com"]
[Date "2020.12.01"]
[Round "2"]
[White "Blitzking642"]
[Black "igorcadilhac"]
[Result "0-1"]
[WhiteElo "2275"]
[BlackElo "2471"]
[TimeControl "180+1"]
[EndTime "10:18:29 PST"]
[Termination "igorcadilhac won by checkmate"]

1. e4 {[%clk 0:03:00.9]} 1... e5 {[%clk 0:02:58.3]} 2. Nf3 {[%clk 0:02:59.3]}
2... Nc6 {[%clk 0:02:58.6]} 3. Nc3 {[%clk 0:02:58.1]} 3... Nf6 {[%clk
0:02:57.9]} 4. Bb5 {[%clk 0:02:57.8]} 4... Bb4 {[%clk 0:02:57]} 5. O-O {[%clk
0:02:54.6]} 5... O-O {[%clk 0:02:56.5]} 6. d3 {[%clk 0:02:52.6]} 6... Bxc3
{[%clk 0:02:54.5]} 7. bxc3 {[%clk 0:02:51.7]} 7... d6 {[%clk 0:02:53.5]} 8. Bg5
{[%clk 0:02:31.5]} 8... Qe7 {[%clk 0:02:49.8]} 9. Re1 {[%clk 0:02:27.3]} 9...
Nd8 {[%clk 0:02:49]} 10. d4 {[%clk 0:02:24.3]} 10... Bg4 {[%clk 0:02:30]} 11. h3
{[%clk 0:02:15.4]} 11... Bh5 {[%clk 0:02:27.9]} 12. Bd3 {[%clk 0:02:15.9]} 12...
Ne6 {[%clk 0:02:23.4]} 13. Be3 {[%clk 0:02:12.6]} 13... Nd7 {[%clk 0:01:37.2]}
14. Rb1 {[%clk 0:02:11.3]} 14... b6 {[%clk 0:01:31.8]} 15. Bb5 {[%clk
0:01:49.9]} 15... Rad8 {[%clk 0:01:15.5]} 16. Be2 {[%clk 0:01:36.2]} 16... c5
{[%clk 0:01:02.7]} 17. Qd2 {[%clk 0:01:33.1]} 17... cxd4 {[%clk 0:00:40.8]} 18.
cxd4 {[%clk 0:01:32.3]} 18... Bxf3 {[%clk 0:00:40.3]} 19. Bxf3 {[%clk 0:01:32]}
19... exd4 {[%clk 0:00:39.9]} 20. Bxd4 {[%clk 0:01:32.6]} 20... Ne5 {[%clk
0:00:39.6]} 21. Be2 {[%clk 0:01:30.8]} 21... Nxd4 {[%clk 0:00:29.1]} 22. Qxd4
{[%clk 0:01:29.7]} 22... Rc8 {[%clk 0:00:29.5]} 23. f4 {[%clk 0:01:23.5]} 23...
Ng6 {[%clk 0:00:29.2]} 24. Rf1 {[%clk 0:00:46]} 24... Rxc2 {[%clk 0:00:27.6]}
25. Bd3 {[%clk 0:00:45.8]} 25... Rxa2 {[%clk 0:00:24.7]} 26. f5 {[%clk
0:00:45.2]} 26... Ne5 {[%clk 0:00:23.8]} 27. f6 {[%clk 0:00:44.9]} 27... Qc7
{[%clk 0:00:21]} 28. fxg7 {[%clk 0:00:42.1]} 28... Rc8 {[%clk 0:00:20.5]} 29.
Rbc1 {[%clk 0:00:29.6]} 29... Qb8 {[%clk 0:00:17.2]} 30. Rxc8+ {[%clk
0:00:28.1]} 30... Qxc8 {[%clk 0:00:18.1]} 31. Qxd6 {[%clk 0:00:27.1]} 31... Qc5+
{[%clk 0:00:18.4]} 32. Qxc5 {[%clk 0:00:24.6]} 32... bxc5 {[%clk 0:00:19.3]} 33.
Bb5 {[%clk 0:00:23.7]} 33... Kxg7 {[%clk 0:00:17.6]} 34. Rc1 {[%clk 0:00:24.1]}
34... Ra5 {[%clk 0:00:04.8]} 35. Rxc5 {[%clk 0:00:23]} 35... Nd3 {[%clk
0:00:04.5]} 36. Rg5+ {[%clk 0:00:19.6]} 36... Kf8 {[%clk 0:00:04.2]} 37. h4
{[%clk 0:00:15.5]} 37... Nf4 {[%clk 0:00:03.8]} 38. Rf5 {[%clk 0:00:12.7]} 38...
Ng6 {[%clk 0:00:03.5]} 39. h5 {[%clk 0:00:11.7]} 39... Ne7 {[%clk 0:00:04]} 40.
Re5 {[%clk 0:00:10]} 40... a6 {[%clk 0:00:04.5]} 41. Rc5 {[%clk 0:00:06.4]}
41... Rxb5 {[%clk 0:00:03.9]} 42. Rc7 {[%clk 0:00:05.7]} 42... Rxh5 {[%clk
0:00:02.6]} 43. Ra7 {[%clk 0:00:06.2]} 43... a5 {[%clk 0:00:03]} 44. Kf2 {[%clk
0:00:05.4]} 44... Re5 {[%clk 0:00:03.5]} 45. Ke3 {[%clk 0:00:05.5]} 45... Nc6
{[%clk 0:00:04.2]} 46. Ra8+ {[%clk 0:00:04.6]} 46... Ke7 {[%clk 0:00:03.9]} 47.
Kf4 {[%clk 0:00:05.5]} 47... Kd6 {[%clk 0:00:04.1]} 48. Ra6 {[%clk 0:00:03.7]}
48... Re6 {[%clk 0:00:04.2]} 49. g4 {[%clk 0:00:03.7]} 49... Rf6+ {[%clk
0:00:04.4]} 50. Ke3 {[%clk 0:00:04.3]} 50... Re6 {[%clk 0:00:04.4]} 51. Ra8
{[%clk 0:00:04.4]} 51... f6 {[%clk 0:00:04.5]} 52. Rh8 {[%clk 0:00:04.8]} 52...
Re7 {[%clk 0:00:04.5]} 53. Rc8 {[%clk 0:00:04.3]} 53... Ne5 {[%clk 0:00:04.8]}
54. Ra8 {[%clk 0:00:04.5]} 54... Ke6 {[%clk 0:00:03.8]} 55. Kf4 {[%clk
0:00:05.4]} 55... Kf7 {[%clk 0:00:03.6]} 56. Rxa5 {[%clk 0:00:04.8]} 56... Kg7
{[%clk 0:00:03.7]} 57. Kf5 {[%clk 0:00:04.9]} 57... Ng6 {[%clk 0:00:03.4]} 58.
Ra6 {[%clk 0:00:05.2]} 58... Re5# {[%clk 0:00:03.7]} 0-1